Cogmind - Beta 15 @@@ ROGUE MODE // 2025.08.24 @ 19:03:19 Player: Genericgamer16 Result: Self-destructed Performance ------------- Evolutions (5) 2500 Regions Visited (4) 800 Robots Destroyed (19) 95 Value Destroyed (789) 789 Prototype IDs (13) 260 Alien Tech Used (0) 0 Bonus (750) 750 TOTAL SCORE: 5194 Bonus ------- Registered with UFD 300 Met Optimus in HQ 500 Friendly Fire -50 Cogmind --------- Core Integrity 833/1000 Matter 186/300 Energy 66/100 System Corruption 1% Temperature Cool (18) Movement Core (350) Ox6 Location -5/Factory Parts ------- > --- POWER (3) -------- (None) > --- PROPULSION (5) --- (None) > --- UTILITY (6) ------ Scrap Suit Medium Storage Unit Experimental Signal Interpreter Improved Focal Shield > --- WEAPON (3) ------- Variable Charge Gun > --- INVENTORY (10) --- Improved Ion Engine Small Storage Unit Advanced Terrain Scan Processor Advanced ECM Suite System Restoration Module Peak State ------------ > --- POWER ------------ Ion Engine Improved Deuterium Engine > --- PROPULSION ------- Overtuned Titanium Leg Overtuned Titanium Leg Overtuned Titanium Leg Improved Carbon-fiber Leg Makeshift Leg > --- UTILITY ---------- Scrap Suit Medium Storage Unit Experimental Signal Interpreter Advanced Drone Bay > --- WEAPON ----------- Heavy Rocket Launcher Junk Cannon > --- INVENTORY -------- Small Storage Unit Advanced Terrain Scan Processor Improved Focal Shield System Restoration Module Lightning Gun Overtuned Barrage Gun [Rating: 69] Favorites ----------- Power Ion Engine Engine Ion Engine Propulsion Aluminum Leg Leg Aluminum Leg Utility Medium Storage Unit Device Cryofiber Web Storage Medium Storage Unit Processor Experimental Signal Interpreter Weapon EM Pulse Gun Energy Gun EM Pulse Gun Energy Cannon Heavy Ion Cannon Ballistic Gun Battle Rifle Launcher Heavy Rocket Launcher Special Weapon Junk Cannon Build | -11 -10 -10 -7 -5 ------- Run | Yrd Mat Sub Scr Fac Slots Evolved 10 | . . . . 10 Power 2 | . . . . 2 Propulsion 3 | . . . . 3 Utility 4 | . . . . 4 Weapon 1 | . . . . 1 Parts Attached 34 | 6 . 2 14 12 Power 4 | 1 . . 2 1 Engine 4 | 1 . . 2 1 Core . | . . . . . Reactor . | . . . . . Propulsion 10 | 2 . . 5 3 Treads . | . . . . . Leg 10 | 2 . . 5 3 Wheel . | . . . . . Hover . | . . . . . Flight . | . . . . . Utility 9 | 1 . 2 2 4 Device 5 | . . 1 1 3 Storage 3 | 1 . 1 1 . Processor 1 | . . . . 1 Hackware . | . . . . . Protection . | . . . . . Artifact . | . . . . . Weapon 11 | 2 . . 5 4 Energy Gun 4 | 2 . . . 2 Energy Cannon 1 | . . . 1 . Ballistic Gun 3 | . . . 2 1 Ballistic Cannon . | . . . . . Launcher 2 | . . . 1 1 Special Weapon 1 | . . . 1 . Impact Weapon . | . . . . . Slashing Weapon . | . . . . . Piercing Weapon . | . . . . . Special Melee Weapon . | . . . . . Unidentified Prototypes 1 | . . . 1 . Parts Lost 13 | . . . . 13 Power 2 | . . . . 2 Propulsion 6 | . . . . 6 Utility 1 | . . . . 1 Weapon 4 | . . . . 4 Highest Loss Streak 11 | . . . . 11 To Critical Strikes 1 | . . . . 1 Average Backups 8 | 2 5 9 9 4 Power . | . 1 1 1 . Propulsion 2 | . 2 3 2 . Utility 2 | . 1 2 1 2 Weapon 2 | . 1 2 3 1 Tool/Special . | . . . . . Unused Backups 13 | . . . 10 3 Power . | . . . . . Propulsion 5 | . . . 5 . Utility 3 | . . . . 3 Weapon 4 | . . . 4 . Tool/Special 1 | . . . 1 . Average Slot Usage (%) 91 | . 85 94 97 70 Engine 13 | . 14 14 14 9 Leg 27 | . 28 28 28 23 Device 10 | . . 8 11 9 Storage 13 | . 14 14 16 6 Energy Gun 10 | . 28 28 9 1 Energy Cannon 4 | . . . 6 . Ballistic Gun 5 | . . . 7 4 Special Weapon 2 | . . . 2 3 Peak Build Rating 69 | 6 6 9 31 69 Average Rating 23 | 4 6 8 17 57 On Entrance 9 | . 6 6 9 28 Naked Turns . | . . . . . Heaviest Build 60 | 14 14 21 39 60 Greatest Support 76 | 20 20 20 38 76 Greatest Overweight (x) 11 | 1 . 1 2 11 Average Overweight (x) . | . . . . . Largest Inventory Capacity 10 | 8 8 10 10 10 Average Capacity 9 | 6 8 9 10 10 Most Carried 10 | 5 7 10 10 9 Average Carried 8 | 2 5 9 9 4 Final Capacity 10 | 8 8 10 10 10 Final Carried 10 | 5 7 10 10 5 Class Distribution -------------------- 76% | Mutant 10% | Scavenger-Scrapper 5% | Derelict-Mutant 4% | Derelict-Scrapper Dominant Class ---------------- Mutant | -10/Materials Mutant | -10/Subcaves Mutant | -7/Scraptown Scavenger-Scrapper | -5/Factory Resources | -11 -10 -10 -7 -5 ----------- Run | Yrd Mat Sub Scr Fac Matter Collected 735 | 260 . 20 160 295 Remotely . | . . . . . Salvage Created 985 | 100 . . 257 628 Parts 31 | 3 . . 6 22 Haulers Intercepted 1 | . . . . 1 Recyclers Shooed 1 | . . . . 1 Parts Field Recycled . | . . . . . Retrieved Matter . | . . . . . Parts Self-Destructed 6 | . . 6 . . Prevented . | . . . . . Kills | -11 -10 -10 -7 -5 ------- Run | Yrd Mat Sub Scr Fac Combat Hostiles Destroyed 12 | . . . 5 7 Guns 3 | . . . . 3 Cannons 2 | . . . 2 . AOE 4 | . . . . 4 Classes Destroyed 13 | 1 . . 4 8 Builder 1 | . . . . 1 Hauler 1 | . . . . 1 Recycler 3 | 1 . . . 2 Operator 1 | . . . . 1 Drone 1 | . . . . 1 Watcher 1 | . . . . 1 Grunt 2 | . . . . 2 Sentry 2 | . . . . 2 Hunter 1 | . . . . 1 Programmer 2 | . . . . 2 Federalist 1 | . . . 1 . Guru 1 | . . . 1 . Scrapper 2 | . . . 2 . Thug 1 | . . . 1 . Best Kill Streak 6 | 1 . . 2 6 Combat Bots Only 5 | . . . 2 5 Max Kills in Single Turn 2 | 1 . . 1 2 Gunslinging . | . . . . . Exploded 1 | . . . . 1 Melee . | . . . . . Uniques/NPCs Destroyed . | . . . . . Combat | -11 -10 -10 -7 -5 -------- Run | Yrd Mat Sub Scr Fac Hostile Shots Fired 157 | . . 1 24 132 Missed 49 | . . 1 6 42 Hits 108 | . . . 18 90 Melee 1 | . . . 1 . Projectile 107 | . . . 17 90 Critical Strikes 10 | . . . 1 9 Damage Taken 2293 | . . . 285 2008 Core 211 | . . . 44 167 Absorbed by Shields . | . . . . . Ignored by Resistances 87 | . . . . 87 Regen/Repaired (Parts) 49 | . . . . 49 Core Remaining (%) 91 | 100 . . 82 . Volleys Fired 73 | 5 2 1 17 48 Largest 2 | 2 2 2 2 2 Hottest 98 | 80 80 80 98 85 Shots Fired 100 | 9 4 2 20 65 Gun 59 | 9 4 2 3 41 Cannon 3 | . . . 3 . Launcher 15 | . . . 1 14 Special 23 | . . . 13 10 Kinetic 31 | . . . 3 28 Thermal 3 | . . . 3 . Explosive 15 | . . . 1 14 Electromagnetic 28 | 9 4 2 . 13 Impact 23 | . . . 13 10 Robot Hit Streak 7 | 2 1 . 6 7 Robot Miss Streak 4 | 2 1 2 2 4 Penetration Max . | . . . . . Secondary Targets . | . . . . . Shots Hit Robots 59 | 5 2 . 14 38 Core Hits 40 | 2 . . 3 35 Critical Kills . | . . . . . Critical Parts Destroyed 2 | . . . 1 1 Critical Strikes 3 | . . . 1 2 Destroy 1 | . . . . 1 Corrupt 1 | . . . . 1 Smash 1 | . . . 1 . Melee Attacks . | . . . . . Impact . | . . . . . Slashing . | . . . . . Piercing . | . . . . . Sneak Attacks . | . . . . . Combat Hostiles . | . . . . . Follow-up Attacks . | . . . . . Damage Inflicted 3026 | 68 30 . 839 2089 Guns 710 | 68 30 . 58 554 Cannons 84 | . . . 84 . Explosions 1077 | . . . . 1077 Melee . | . . . . . Ramming 7 | . . . . 7 Kinetic 446 | . . . 58 388 Thermal 152 | . . . 84 68 Explosive 1009 | . . . . 1009 Electromagnetic 264 | 68 30 . . 166 Impact 1148 | . . . 697 451 Slashing . | . . . . . Piercing . | . . . . . Highest Corruption 1 | . . . 1 1 Average Corruption 1 | . . . 1 1 Corruption Purged . | . . . . . Corruption Blocked . | . . . . . Effects 3 | . . . 1 2 Energy Discharges 2 | . . . 1 1 Data Loss (minor) 1 | . . . . 1 Overload Shots . | . . . . . Overflow Damage 513 | . . . 294 219 Projectiles 418 | . . . 294 124 Explosions 95 | . . . . 95 Melee . | . . . . . Knockbacks 7 | . . . 4 3 Impact 7 | . . . 4 3 Kinetic . | . . . . . Secondary . | . . . . . Self-Inflicted Damage 219 | . . . 33 186 Shots 6 | . . . 1 5 Rammed . | . . . . . Targets Rammed 1 | . . . . 1 Kicked 1 | . . . . 1 Crushed . | . . . . . Highest Temperature 78 | 72 36 . 19 78 Average Temperature 29 | 38 20 . 7 30 Received Heat Transfer 655 | . . . 100 555 Siege Activations . | . . . . . Martial Activations . | . . . . . Shielding Activations . | . . . . . Robots Disrupted . | . . . . . Combat Hostiles . | . . . . . Robots Corrupted 5 | . . . 3 2 Combat Hostiles 3 | . . . 3 . Parts Fried 9 | 1 . . 5 3 Impact Corruptions 14 | . . . 8 6 Robots Melted . | . . . . . Combat Hostiles . | . . . . . Parts Melted . | . . . . . Heat Transferred 161 | . . . 111 50 Parts Sabotaged . | . . . . . Parts Stolen . | . . . . . Parts Stripped . | . . . . . Power Chain Reactions 1 | . . . . 1 Alert | -11 -10 -10 -7 -5 ------- Run | Yrd Mat Sub Scr Fac Maximum Alert Level 1 | . . . . 1 Low Security (%) 68 | 100 100 . . 56 Level 1 31 | . . . . 43 Level 2 . | . . . . . Level 3 . | . . . . . Level 4 . | . . . . . Level 5 . | . . . . . High Security . | . . . . . Max Security . | . . . . . Peak Influence 306 | 5 . . . 306 Initial . | . . . . . Average 89 | . . . . 123 Influence Increases 529 | 5 . . . 524 Destroy 0b10 Robot/C 140 | . . . . 140 Destroy 0b10 Robot/NC 35 | 5 . . . 30 Destroy Leader 54 | . . . . 54 Disable Machine 60 | . . . . 60 Destroy Structure 150 | . . . . 150 Lose Combat Pursuer 90 | . . . . 90 Influence Decreases 281 | 5 . . . 276 Time Decay 141 | 5 . . . 136 Lost Part 130 | . . . . 130 Lost Ally 10 | . . . . 10 Squads Dispatched 3 | . . . . 3 Investigation . | . . . . . Extermination 1 | . . . . 1 Reinforcement 2 | . . . . 2 Assault . | . . . . . Garrison . | . . . . . Intercept . | . . . . . Searches Triggered . | . . . . . Construction Impeded 1 | . . . . 1 Haulers Reinforced 1 | . . . . 1 Active Scanning Responses . | . . . . . Cargo Convoy Interrupts . | . . . . . Stealth | -11 -10 -10 -7 -5 --------- Run | Yrd Mat Sub Scr Fac Distress Signals 2 | . . . . 2 Communications Jammed . | . . . . . Distress Signals . | . . . . . Times Spotted 37 | . 1 3 13 20 Peak Tracking Total 5 | . 1 3 3 5 Tactical Retreats 4 | . . . 1 3 Traps | -11 -10 -10 -7 -5 ------- Run | Yrd Mat Sub Scr Fac Traps Triggered . | . . . . . Indirectly . | . . . . . Trap Hack Attempts . | . . . . . Triggered . | . . . . . Disarmed . | . . . . . Reprogrammed . | . . . . . Reused . | . . . . . Traps Extracted . | . . . . . Installed . | . . . . . Triggered . | . . . . . Machines | -11 -10 -10 -7 -5 ---------- Run | Yrd Mat Sub Scr Fac Machines Disabled 5 | . . . 1 4 Max in Single Turn 1 | . . . 1 1 Machines Repaired . | . . . . . Machines Dismantled . | . . . . . Machines Sabotaged . | . . . . . Overloaded Fab Kills . | . . . . . Hacking | -11 -10 -10 -7 -5 --------- Run | Yrd Mat Sub Scr Fac Machines Accessed 9 | . 1 . 6 2 Terminals 2 | . 1 . . 1 Fabricators . | . . . . . Repair Stations . | . . . . . Recycling Units . | . . . . . Scanalyzers 1 | . . . . 1 Garrison Access . | . . . . . Total Hacks 64 | . 1 . 54 9 Successful 62 | . 1 . 54 7 Failed 2 | . . . . 2 Catastrophic . | . . . . . Database Lockouts . | . . . . . Manual . | . . . . . Terminals 3 | . 1 . . 2 Fabricators . | . . . . . Repair Stations . | . . . . . Recycling Units . | . . . . . Scanalyzers 7 | . . . . 7 Garrison Access . | . . . . . Terminal Hacks 56 | . 1 . 54 1 Record 54 | . . . 53 1 Maintenance Status 1 | . 1 . . . Proto ID Catalog 1 | . . . 1 . Fabricator Hacks . | . . . . . Repair Station Hacks . | . . . . . Recycling Unit Hacks . | . . . . . Scanalyzer 6 | . . . . 6 Insert Component 3 | . . . . 3 Analyze 3 | . . . . 3 Garrison Access Hacks . | . . . . . Unauthorized Hacks . | . . . . . Terminals . | . . . . . Fabricators . | . . . . . Repair Stations . | . . . . . Recycling Units . | . . . . . Scanalyzers . | . . . . . Garrison Access . | . . . . . Data Cores Recovered 2 | . 1 . . 1 Used 1 | . 1 . . . Hacking Detections 1 | . . . . 1 Full Trace Events . | . . . . . Feedback Events . | . . . . . Feedback Blocked . | . . . . . Robot Schematics Acquired . | . . . . . Robots Built . | . . . . . Authchips . | . . . . . Time . | . . . . . Total Robot Build Rating . | . . . . . Part Schematics Acquired 2 | . . . . 2 Parts Built . | . . . . . Authchips . | . . . . . Time . | . . . . . Total Part Build Rating . | . . . . . Parts Repaired . | . . . . . Time . | . . . . . Parts Recycled . | . . . . . Recycled Matter . | . . . . . Retrieved Matter . | . . . . . Retrieved Components . | . . . . . Parts Scanalyzed 3 | . . . . 3 Part Schematics Acquired 2 | . . . . 2 Parts Damaged . | . . . . . Bothacking | -11 -10 -10 -7 -5 ------------ Run | Yrd Mat Sub Scr Fac Used RIF Installer . | . . . . . Robots Hacked . | . . . . . Non-combat . | . . . . . Combat . | . . . . . Robot Hacks Applied . | . . . . . Relay Couplers Released . | . . . . . Fabnet Peak Effective % . | . . . . . Robots Rewired . | . . . . . Allies Hacked . | . . . . . Hacks Repelled . | . . . . . Allies | -11 -10 -10 -7 -5 -------- Run | Yrd Mat Sub Scr Fac Total Allies . | . . . . . Largest Group . | . . . . . Highest-Rated Group . | . . . . . Highest-Rated Ally . | . . . . . Total Orders . | . . . . . Ally Attacks . | . . . . . Total Damage . | . . . . . Kills . | . . . . . Allies Corrupted . | . . . . . Allies Melted 2 | . . . 2 . Intel | -11 -10 -10 -7 -5 ------- Run | Yrd Mat Sub Scr Fac Active Infowar (turns) 750 | . . 166 584 . Optics 750 | . . 166 584 . Robot Analysis Total . | . . . . . Derelict Logs Recovered . | . . . . . Drone Launches 2 | . . . . 2 Drone Recoveries . | . . . . . Exploration | -11 -10 -10 -7 -5 ------------- Run | Yrd Mat Sub Scr Fac Turns Passed 2575 | 94 97 245 1643 496 Spaces Moved 1540 | 47 62 133 1018 280 Core 6 | 5 . . . 1 Treads . | . . . . . Legs 1534 | 42 62 133 1018 279 Wheels . | . . . . . Hover . | . . . . . Flight . | . . . . . Fastest Speed 50 | 50 120 120 125 110 Average Speed 144 | 128 120 160 148 128 Slowest Speed 600 | 190 120 190 260 600 Overloaded Moves . | . . . . . Propulsion Burnouts . | . . . . . Robots Hopped . | . . . . . Potential Cave-ins . | . . . . . Cave-ins Triggered . | . . . . . Exploration Rate (%) 20 | 5 13 13 62 11 Regions Visited 4 Branch Regions 2 Pre-discovered Areas 6 | . . 1 5 . Known Exits Taken 1 | . . . 1 . Unknown Exits Taken 3 | 1 1 1 . . Scrap Searched 4 | . . . 4 . Spaces Dug 10 | . . . 10 . Terrain Destroyed 102 | . . . 10 92 Melee . | . . . . . Projectile 3 | . . . . 3 AOE 99 | . . . 10 89 Terrain Rammed . | . . . . . Walls Destroyed . | . . . . . Machines Disabled . | . . . . . Actions | -11 -10 -10 -7 -5 --------- Run | Yrd Mat Sub Scr Fac Total 1825 | 71 80 163 1145 366 Wait 96 | 3 15 23 47 8 Move 1536 | 46 61 132 1017 280 Hop . | . . . . . Pick Up 45 | 11 2 4 20 8 Fast Attach 4 | . . 1 3 . Attach 22 | 6 . . . 16 Detach 4 | . . . . 4 Swap 13 | . . 1 11 1 Drop 31 | . . 1 30 . Fire 73 | 5 2 1 17 48 Melee . | . . . . . Ram . | . . . . . Kick 1 | . . . . 1 Crush . | . . . . . Escape Stasis . | . . . . . Rewire . | . . . . . Trap . | . . . . . Miscellaneous . | . . . . . Route ------- -11/Scrapyard -10/Materials -10/Subcaves -7/Scraptown (discovered 2 exits: *Fac x2) -5/Factory (discovered 4 exits: Fac x3 / Upp) History --------- Turn | Location | Event 8 | -11/Scrapyard | Discovered new exit (range 15) 95 | -11/Scrapyard | Entered Materials 96 | -10/Materials | Met a group of wandering Federalists 169 | -10/Materials | Discovered new exit (range 9) 192 | -10/Materials | Entered Subcaves 192 | -10/Subcaves | Accompanied by 4 allies 193 | -10/Subcaves | Continued accompanying wandering Federalists (6) 193 | -10/Subcaves | Approached by a straggling Scientist 196 | -10/Subcaves | Shifting Twisted Machinery released Spk. Treads 196 | -10/Subcaves | Learned location of Zion (-6) 196 | -10/Subcaves | Met a Zionite searching for "candidates" 227 | -10/Subcaves | Shifting Twisted Machinery released Battle Rifle 311 | -10/Subcaves | Build established: Mutant 320 | -10/Subcaves | A swath of the cavern ceiling suddenly collapsed 410 | -10/Subcaves | Wandering Federalist uncovered a shortcut to Scraptown 437 | -10/Subcaves | Entered Scraptown 514 | -7/Scraptown | Visited Spacefarers 1197 | -7/Scraptown | Visited TADAMA 1235 | -7/Scraptown | Visited UFD Registry 1235 | -7/Scraptown | Registered with UFD as "Longback" 1277 | -7/Scraptown | Visited Science Guys 1326 | -7/Scraptown | Visited Curators Association 1372 | -7/Scraptown | Visited Infowarlord's Domain 1383 | -7/Scraptown | Found Exp. Signal Interpreter 1411 | -7/Scraptown | Visited Derelict Rescue Squad 1427 | -7/Scraptown | Found DRS Beacon 1459 | -7/Scraptown | Found DRS Beacon 1498 | -7/Scraptown | Met Optimus 1498 | -7/Scraptown | Accepted into 0bPrime 1612 | -7/Scraptown | Visited DA-N13 Charitable Foundation 1619 | -7/Scraptown | Found DCF Scrap (31 items) 1678 | -7/Scraptown | Visited Cartography Club 1683 | -7/Scraptown | Civil war broke out across Scraptown 1701 | -7/Scraptown | Learned location of Lower Caves (-7) 1701 | -7/Scraptown | Learned location of Testing (-2) 1701 | -7/Scraptown | Learned 12 Factory zone layouts 1701 | -7/Scraptown | Learned 20 Factory zone layouts 1701 | -7/Scraptown | Learned 16 Research zone layouts 1701 | -7/Scraptown | Learned 4 Access zone layouts 1701 | -7/Scraptown | Learned 8 Upper Caves zone layouts 1701 | -7/Scraptown | Learned 24 Upper Caves zone layouts 1701 | -7/Scraptown | Learned 12 Proximity Caves zone layouts 1701 | -7/Scraptown | Learned location of Hub_04(d) (-4) 1701 | -7/Scraptown | Learned 4 Hub_04(d) zone layouts 1701 | -7/Scraptown | Learned Research emergency access door positions 1701 | -7/Scraptown | Learned location of 2 exits from Lower Caves 1701 | -7/Scraptown | Learned location of 3 exits from Proximity Caves 1733 | -7/Scraptown | Visited A0-MCA Data Center 1737 | -7/Scraptown | Lost 6 allies 1766 | -7/Scraptown | Visited Junk Cannon Lab 1785 | -7/Scraptown | Found Prototype Special Weapon 1785 | -7/Scraptown | Identified Junk Cannon 1853 | -7/Scraptown | Found Scrap Suit 1941 | -7/Scraptown | Identified exit to Factory 2080 | -7/Scraptown | Entered Factory 2080 | -5/Factory | Evolved 10 slots: Power x2, Propulsion x3, Utility x4, Weapon x1 2081 | -5/Factory | Identified exit to Factory 2081 | -5/Factory | Identified exit to Upper Caves 2556 | -5/Factory | Spotted B-75 Beast 2576 | -5/Factory | Self-destructed Last Messages --------------- 02560_ Penetrated by Slug. 02560_ Ovr. Barrage Gun destroyed. 02560_ U-05 Engineer lays Concrete. 02562_ Acquired Variable Charge Gun. 02562_ U-05 Engineer lays Concrete. 02563_ Penetrated by Slug. 02563_ Imp. Deuterium Engine destroyed. 02563_ U-05 Engineer lays Concrete. 02567_ K-01 Serf collects debris. 02567_ Penetrated by Slug. 02567_ Carbon-fiber Leg destroyed. 02568_ K-01 Serf destroyed. 02569_ U-05 Engineer builds a Wall. 02570_ Junk Cannon collects and crushes Wheel. 02570_ Acquired 4 matter. 02573_ U-05 Engineer builds a Wall. 02573_ U-05 Engineer builds a Door. 02573_ Critical hit (Destroy). 02573_ Junk Cannon destroyed. 02576_ Penetrated by Slug. Map ----- +----------------------------------------------------+ | #???# # # #??????????? | | #???# # # ######## ####???????? | | #???# # # #??????# #?####### | | #???# + """ # " ! #??????#### #?# | | #???# # """ # " ###?????### ### "" | | ######## # """ # " !! ""#?????# # "" | | # # " !! ""#?????# # "" | | # # "" " ! T"#?????# < + "" | | #######""" " ""#?????# # "" | | ##################"T " ""#?????# # | | ????????????#""" " #???????????????????? | | """ ????????????? "" " #???????????????????? | | """ ?????????????? ? +???????????????????? | | """ ??????????????? ??? #????????? ???????? | | """ ???????????????# #???# #????????# #??????? | | ???????????????# ;#?## #????????# #??????? | | ????????????????#;;####+###??????# #??????? | | #####?????????????????;! Y #??????# #??????? | | #??????????????????##BB ! #??????# #??????? | | ###??######+########;BB! % #?????## ##?????? | | # ? ;!!= = #?????# #?????? | | # ? #[%! " #????## #?????? | | # #u [!"" #????# +?????? | | # + == "" #????#T #?????? | | # #! "" #?????# #?????? | | # ????######## #% @ % #?????# #?????? | | # ???????????# ####;########### #?????? | | # ???????????# * g #?????? | | + ???????????# ####### | | # ???????????# """ """ | | ### ???????????# """ """ | | # ???????????# "%" """ | | # ???????????############### | | # ?????????????????????????# | | # ?????????????????????????# != | | # # """ #?????????????# != | | " + # """ ########??????# != !/ ####### | | " # # """ # #??????# !/ #?????? | | # # # """ #??????# !! #?????? | | #### # """ # """ #??????# ########?????? | | #??# # """ # """ ######## #????????????? | | #??# # """ # # #????????????? | | #??# # # # #????????????? | | +##??# ######### + #????????????? | | #???# #???????# # #????????????? | | #???# #???????# # #????????????? | | #???# #???????# ### #????????????? | | ##### ##??????# #?# ?????????????? | | ######## #?# ? ?????????????? | | + #?# ??? ?????????????? | +----------------------------------------------------+ Best States ------------- Heat Dissipation 40 Energy Generation 21 Energy Capacity 440 Matter Stores 300 Matter Capacity 300 Sight Range 21 Terrain Scan Density 10 Base Temperature (-) 100 Resistance: KI 25 Evasion (%) 55 Item Schematics ----------------- Hvy. Rocket Launcher | -5/Factory | Scanalyzed Imp. Focal Shield | -5/Factory | Scanalyzed Robot Schematics ------------------ None Fabricated ------------ Nothing Repaired ---------- Nothing Alien Tech Used ----------------- None Achievements -------------- None Challenges ------------ None Game ------ Seed HeavyHelicalNukerbomber Manual? 0 Play Time 01:07:18 Cumulative 19.6 hours Start 2025.08.24 @ 17:53:21 End 2025.08.24 @ 19:03:19 Sessions 1 Manual Loads 0 Difficulty Rogue Special Mode None Game No. 25 Rogue 25 Adventurer 0 Explorer 0 Win Type - Total 0 Types 0/0/0/0/0/0/0/0/0/0 Lore% 17 Gallery% 19 Achievement% 18 Wizard Run 0 Options --------- Layout 1 ASCII 0 Keyboard 0 Movement Mouse Keybinds 0 Fullscreen 1 Font 24/Smallcaps Map View 50x35 Zoom Use 0% Tactical HUD 1 Map Filters NONE Filters NONE Steam 1 RUN: 96ba1da2-9404-48d3-a0b5-837daa54fdfa